Cogmind - Beta 12 @@@ ROGUE MODE // 2023.07.01 @ 21:03:49 Player: lyrabold Result: Self-destructed Performance ------------- Evolutions (4) 2000 Regions Visited (9) 1800 Robots Destroyed (235) 1175 Value Destroyed (8149) 8149 Prototype IDs (20) 400 Alien Tech Used (0) 0 Bonus (8888) 8888 TOTAL SCORE: 22412 Bonus ------- Super Gauntlet 6553 High Alert Combat Kills 1453 Follower Combat Kills 521 Entered Garrisons 400 Friendly Fire -39 Cogmind --------- Core Integrity 583/850 Matter 3/300 Energy 129/150 System Corruption 5% Temperature Cool (0) Movement Hovering (186) Ox2 Location -6/Factory Parts ------- > --- POWER (2) -------- Micro Nuclear Core > --- PROPULSION (4) --- Gravmag Array Combat Gravmag System > --- UTILITY (7) ------ Huge Storage Unit Machine Analyzer Advanced Targeting Computer Core Analyzer > --- WEAPON (2) ------- Compact Mass Driver Compact Mass Driver > --- INVENTORY (25) --- Compact Particle Reactor Improved Diametric Drive Improved Diametric Drive Improved Diametric Drive Improved Heat Sink Compact Matter Pod (128) Machine Analyzer Advanced Signal Interpreter Advanced Terrain Scan Processor Improved Transmission Jammer Powered Armor Advanced Shield Generator Advanced Shield Generator Improved System Restoration Module Advanced Field Recycling Unit (7) High-powered Shock Rifle High-powered Shock Rifle Advanced Plasma Cannon Advanced Plasma Cannon Heavy Neutron Cannon Heavy Neutron Cannon Tesla Bomb Launcher Tesla Bomb Launcher Rocket Array Improved Datajack Peak State ------------ > --- POWER ------------ Micro Nuclear Core > --- PROPULSION ------- Armored Leg Gravmag Array Improved Diametric Drive > --- UTILITY ---------- Huge Storage Unit Machine Analyzer Advanced Targeting Computer Core Analyzer System Shield > --- WEAPON ----------- Heavy Neutron Cannon Compact Mass Driver > --- INVENTORY -------- Compact Particle Reactor Combat Gravmag System Improved Diametric Drive Improved Diametric Drive Improved Heat Sink Compact Matter Pod Machine Analyzer Advanced Signal Interpreter Advanced Terrain Scan Processor Improved Transmission Jammer Powered Armor Advanced Shield Generator Advanced Shield Generator Improved System Restoration Module Advanced Field Recycling Unit High-powered Shock Rifle High-powered Shock Rifle Pulse Rifle Pulse Rifle Advanced Plasma Cannon Advanced Plasma Cannon Advanced Plasma Cannon Tesla Bomb Launcher Rocket Array Improved Datajack [Rating: 72] Favorites ----------- Power Heavy Ion Engine Engine Heavy Ion Engine Power Core Light Nuclear Core Reactor Heavy Antimatter Reactor Propulsion Light Treads Treads Light Treads Leg Aluminum Leg Wheel Compact Wheel Hover Unit Gravmag Array Flight Unit Cesium-ion Thruster Utility Huge Storage Unit Device Seismic Detector Storage Huge Storage Unit Processor Machine Analyzer Hackware Hacking Suite Protection Light Armor Plating Weapon Improved Assault Rifle Energy Gun High-powered Shock Rifle Energy Cannon Advanced Beam Cannon Ballistic Gun Improved Assault Rifle Ballistic Cannon Mass Driver Launcher Rocket Launcher Impact Weapon Maul Slashing Weapon Mining Claw Special Melee Weapon Improved Datajack Build | -11 -10 -9 -8 -8 -7 -7 -7 -7 -6 ------- Run | Jun Mat Mat Mat Gar Fac Was Fac Gar Fac Slots Evolved 8 | . . 2 2 . 2 . . . 2 Power 1 | . . . . . . . . . 1 Propulsion 2 | . . 1 1 . . . . . . Utility 5 | . . 1 1 . 2 . . . 1 Weapon . | . . . . . . . . . . Parts Attached 229 | 9 11 24 32 9 42 19 25 23 35 Power 15 | 1 . 1 1 1 1 . 3 1 6 Engine 7 | 1 . 1 1 . 1 . 3 . . Core 6 | . . . . 1 . . . 1 4 Reactor 2 | . . . . . . . . . 2 Propulsion 66 | 4 6 7 6 4 11 6 11 4 7 Treads 42 | 2 4 7 6 4 10 4 5 . . Leg 14 | 2 1 . . . . . 6 3 2 Wheel 3 | . . . . . . . . 1 2 Hover 4 | . . . . . 1 1 . . 2 Flight 3 | . 1 . . . . 1 . . 1 Utility 74 | 2 4 8 14 2 12 9 5 13 5 Device 36 | 1 1 3 3 . 3 8 2 11 4 Storage 6 | 1 2 1 1 . . . 1 . . Processor 7 | . 1 . 2 . 4 . . . . Hackware 3 | . . . . 1 . 1 . . 1 Protection 22 | . . 4 8 1 5 . 2 2 . Artifact . | . . . . . . . . . . Weapon 74 | 2 1 8 11 2 18 4 6 5 17 Energy Gun 11 | 1 1 1 . . . . 2 2 4 Energy Cannon 10 | . . 4 . . 2 . . . 4 Ballistic Gun 28 | 1 . 2 9 1 10 2 3 . . Ballistic Cannon 6 | . . . . . . . . 2 4 Launcher 14 | . . . 2 1 3 2 1 1 4 Special Weapon . | . . . . . . . . . . Impact Weapon 2 | . . . . . 2 . . . . Slashing Weapon 1 | . . 1 . . . . . . . Piercing Weapon . | . . . . . . . . . . Special Melee Weapon 2 | . . . . . 1 . . . 1 Unidentified Prototypes 10 | . . 2 . . 1 . 1 . 6 Parts Lost 39 | . 1 . 2 4 2 4 14 1 11 Power 4 | . . . . . . 1 1 . 2 Propulsion 22 | . . . 2 2 1 2 9 1 5 Utility 7 | . . . . 2 . . 2 . 3 Weapon 6 | . 1 . . . 1 1 2 . 1 Highest Loss Streak 7 | . 1 . 1 3 1 4 4 1 7 To Critical Strikes . | . . . . . . . . . . Average Slot Usage (%) 97 | . 99 99 98 99 98 89 94 99 90 Engine 7 | . 14 11 9 3 5 5 6 1 . Core 2 | . . . . 5 1 . . 5 10 Treads 23 | . 10 33 35 35 29 27 17 . . Leg 6 | . 17 . . . . . 9 23 18 Device 6 | . 14 11 3 . . 6 3 10 10 Storage 8 | . 14 11 9 9 7 2 3 7 6 Processor 11 | . . . 7 9 21 23 23 23 20 Hackware 3 | . . . . 7 7 12 9 . . Protection 7 | . . 10 15 9 6 . 2 4 4 Energy Gun 4 | . 13 2 . . . . 4 12 8 Energy Cannon 3 | . . 17 1 . 1 . . . . Ballistic Gun 9 | . 14 1 16 17 13 4 10 . . Naked Turns . | . . . . . . . . . . Heaviest Build 122 | 14 49 100 108 112 122 99 113 112 120 Greatest Support 88 | 40 40 60 80 80 88 88 80 54 62 Greatest Overweight (x) 7 | . 2 1 1 1 1 1 5 6 7 Average Overweight (x) 1 | . . . 1 1 1 . . 4 3 Largest Inventory Capacity 25 | 8 20 25 25 25 25 25 25 25 25 Average Capacity 21 | 7 15 24 25 25 25 11 16 25 25 Most Carried 25 | 4 18 25 25 25 25 25 25 25 25 Average Carried 20 | 2 12 23 24 24 24 11 9 24 24 Final Capacity 25 | 8 20 25 25 25 25 5 25 25 25 Final Carried 25 | 4 18 25 25 25 25 5 25 25 25 Class Distribution -------------------- 68% | Scavenger-Mutant 31% | Mutant Dominant Class ---------------- Mutant | -10/Materials Mutant | -9/Materials Scavenger-Mutant | -8/Materials Scavenger-Mutant | -8/Garrison Scavenger-Mutant | -7/Factory Scavenger-Mutant | -7/Waste Scavenger-Mutant | -7/Factory Scavenger-Mutant | -7/Garrison Scavenger-Mutant | -6/Factory Resources | -11 -10 -9 -8 -8 -7 -7 -7 -7 -6 ----------- Run | Jun Mat Mat Mat Gar Fac Was Fac Gar Fac Matter Collected 5176 | 296 84 566 943 374 775 574 915 129 520 Remotely 515 | . . . 83 . 119 313 . . . Salvage Created 10406 | 65 561 1607 1639 501 1310 465 2279 503 1476 Parts 519 | 4 44 91 75 39 73 1 100 26 66 Haulers Intercepted 15 | . 2 6 . . 2 . 2 . 3 Recyclers Shooed 11 | . . . 3 . 2 . 1 . 5 Parts Field Recycled 15 | . . . 6 . . . 3 6 . Retrieved Matter 267 | . . . 114 . . . 14 139 . Parts Self-Destructed . | . . . . . . . . . . Prevented . | . . . . . . . . . . Kills | -11 -10 -9 -8 -8 -7 -7 -7 -7 -6 ------- Run | Jun Mat Mat Mat Gar Fac Was Fac Gar Fac Combat Hostiles Destroyed 163 | . 15 18 25 15 25 2 33 12 18 Guns 100 | . 15 1 19 10 14 . 33 7 1 Cannons 24 | . . 15 2 . 1 . . 2 4 AOE 35 | . . . 4 5 9 2 . 3 12 Classes Destroyed 19 | 2 5 2 2 2 2 1 1 . 2 Worker 6 | . . . 3 . 2 . 1 . . Builder 6 | . . . . . . . 3 . 3 Tunneler 3 | 1 . . 1 . . . . . 1 Hauler 15 | . 2 6 . . 2 . 2 . 3 Recycler 21 | 1 . 4 4 . 1 . 7 . 4 Mechanic 5 | . . 1 1 . . . 1 . 2 Operator 3 | . 1 1 1 . . . . . . Watcher 15 | . 3 5 2 1 1 . 1 2 . Swarmer 21 | . 8 . . . 3 . 4 3 3 Cutter 2 | . . . . 2 . . . . . Grunt 85 | . 7 11 17 7 10 . 25 8 . Brawler 3 | . . . . . 1 . 2 . . Duelist 1 | . . . . . 1 . . . . Protector 1 | . . . . . . . . . 1 Sentry 24 | . . 7 5 2 5 . 1 1 3 Specialist 2 | . . . . . . . . . 2 Hunter 9 | . . . 3 1 2 . . . 3 Programmer 13 | . . . . 3 3 . 1 . 6 Compactor 2 | . . . . . . 2 . . . Best Kill Streak 15 | 2 6 5 6 7 7 1 10 4 15 Combat Bots Only 10 | . 5 3 5 7 6 1 6 4 10 Max Kills in Single Turn 9 | 1 2 2 3 2 3 1 2 3 9 Gunslinging 1 | . 1 . . . 1 . 1 . . Exploded 8 | . . . 1 2 3 1 . 3 8 Melee . | . . . . . . . . . . Uniques/NPCs Destroyed . | . . . . . . . . . . Combat | -11 -10 -9 -8 -8 -7 -7 -7 -7 -6 -------- Run | Jun Mat Mat Mat Gar Fac Was Fac Gar Fac Damage Taken 10074 | . 311 445 1817 953 1529 240 2610 765 1404 Core 1125 | . 86 37 132 29 162 . 342 70 267 Absorbed by Shields . | . . . . . . . . . . Regen/Repaired (Parts) 308 | . . . 130 . . 159 19 . . Core Remaining (%) 68 | 100 65 90 . 70 . . . 18 . Volleys Fired 577 | 6 56 69 111 44 72 24 121 37 37 Largest 2 | 2 2 2 2 2 2 2 2 2 2 Hottest 196 | 70 70 136 136 46 126 61 128 128 196 Shots Fired 1085 | 12 112 134 215 83 135 41 232 66 55 Gun 856 | 12 112 18 185 77 118 25 232 53 24 Cannon 185 | . . 116 24 . 8 . . 12 25 Launcher 44 | . . . 6 6 9 16 . 1 6 Special . | . . . . . . . . . . Kinetic 677 | 6 56 7 185 77 118 25 169 12 22 Thermal 295 | 6 47 116 24 . . . 63 36 3 Explosive 44 | . . . 6 6 9 16 . 1 6 Electromagnetic 69 | . 9 11 . . 8 . . 17 24 Robot Hit Streak 54 | 3 14 17 19 21 38 20 54 9 28 Robot Miss Streak 5 | 2 4 3 5 1 3 1 3 5 2 Penetration Max 1 | . . . . . . . . . 1 Secondary Targets 19 | . 3 . 5 . 2 . 9 . . Max Gunslinging Chain 1 | . 1 . 1 . 1 . 1 . . Shots Hit Robots 817 | 7 73 84 164 65 109 34 195 44 42 Core Hits 480 | 3 34 37 73 38 65 9 89 34 98 Critical Kills 4 | . . 2 1 . . . 1 . . Critical Parts Destroyed 3 | . . . 2 . 1 . . . . Critical Strikes 21 | . 4 2 3 . 1 . 5 1 5 Burn 8 | . 4 . . . . . 4 . . Meltdown 2 | . . 2 . . . . . . . Destroy 4 | . . . 3 . . . 1 . . Blast 4 | . . . . . . . . . 4 Corrupt 2 | . . . . . . . . 1 1 Smash 1 | . . . . . 1 . . . . Melee Attacks 7 | . . 2 . . 5 . . . . Impact 3 | . . . . . 3 . . . . Slashing 2 | . . 2 . . . . . . . Piercing . | . . . . . . . . . . Sneak Attacks 4 | . . . . . 4 . . . . Combat Hostiles . | . . . . . . . . . . Follow-up Attacks . | . . . . . . . . . . Damage Inflicted 21171 | 85 777 1770 3213 1723 2989 1831 3870 1210 3703 Guns 11200 | 75 748 132 2155 967 1632 443 3864 705 479 Cannons 3157 | . . 1594 349 . 230 . . 301 683 Explosions 6469 | . . . 661 756 929 1388 . 204 2531 Melee 164 | . . . . . 164 . . . . Ramming 181 | 10 29 44 48 . 34 . 6 . 10 Kinetic 9514 | 23 296 29 2155 967 1632 443 3023 301 645 Thermal 4041 | 52 399 1594 349 . . . 841 344 462 Explosive 6045 | . . . 661 756 929 1388 . 204 2107 Electromagnetic 1226 | . 53 103 . . 230 . . 361 479 Impact 164 | . . . . . 164 . . . . Slashing . | . . . . . . . . . . Piercing . | . . . . . . . . . . Highest Corruption 5 | . 4 . 2 2 2 2 5 5 5 Average Corruption 2 | . 3 . 1 1 1 2 3 5 2 Corruption Purged 7 | . . . 2 . . . . . 5 Corruption Blocked . | . . . . . . . . . . Effects 113 | . 16 . 11 10 13 7 26 23 7 Message Errors 27 | . 5 . 3 4 3 2 4 5 1 Matter Fused 27 | . 6 . 1 2 1 . 9 6 2 Heat Flow Errors 14 | . 1 . . 2 4 1 3 3 . Energy Discharges 12 | . 1 . 1 . 1 1 5 2 1 Parts Fused 1 | . . . . 1 . . . . . Data Loss (minor) 13 | . 3 . 1 . 4 1 1 2 1 Data Loss (major) 5 | . . . 2 . . . 1 1 1 Misfires 6 | . . . 1 1 . . 1 2 1 Alerts 2 | . . . . . . 1 . 1 . Weapon Failures 6 | . . . 2 . . 1 2 1 . Overload Shots . | . . . . . . . . . . Overflow Damage 263 | . . 35 . 16 130 38 . . 44 Projectiles 62 | . . 35 . . . . . . 27 Explosions 97 | . . . . 16 26 38 . . 17 Melee 104 | . . . . . 104 . . . . Knockbacks 3 | . . . 1 . . . . . 2 Impact 1 | . . . 1 . . . . . . Kinetic 2 | . . . . . . . . . 2 Secondary . | . . . . . . . . . . Self-Inflicted Damage 562 | . . . 9 123 140 100 . 61 129 Shots 22 | . . . 1 3 4 3 . 4 7 Rammed 20 | . 1 5 6 . 4 . 3 . 1 Targets Rammed 27 | 2 5 5 7 . 4 . 3 . 1 Kicked 6 | 2 4 . . . . . . . . Crushed 1 | . . . 1 . . . . . . Highest Temperature 385 | 70 140 293 300 241 170 168 385 207 108 Average Temperature 67 | 39 44 79 67 55 42 93 75 91 33 Received Heat Transfer 3234 | . 48 177 774 270 399 . 1206 171 189 Effects 1 | . . 1 . . . . . . . Interference 1 | . . 1 . . . . . . . Siege Activations . | . . . . . . . . . . Robots Corrupted 4 | . . . . . 1 . . . 3 Combat Hostiles 2 | . . . . . 1 . . . 1 Parts Fried 11 | . . . . . 4 . . 2 5 Impact Corruptions 5 | . . 1 . . 4 . . . . Robots Melted 2 | . . 2 . . . . . . . Combat Hostiles 2 | . . 2 . . . . . . . Parts Melted 19 | . 1 8 1 . . . 5 2 2 Heat Transferred 8342 | 148 1480 2812 629 . . . 2109 814 350 Parts Sabotaged 4 | . . . . . . . . . 4 Parts Stolen . | . . . . . . . . . . Parts Stripped . | . . . . . . . . . . Power Chain Reactions 1 | . . . . . . . . . 1 Missiles Intercepted . | . . . . . . . . . . Alert | -11 -10 -9 -8 -8 -7 -7 -7 -7 -6 ------- Run | Jun Mat Mat Mat Gar Fac Was Fac Gar Fac Peak Influence 946 | 10 341 458 605 897 898 331 652 686 946 Initial 470 | . 6 . 187 369 470 284 102 381 359 Average 388 | 3 85 233 452 691 479 236 458 522 474 Maximum Alert Level 3 | . 1 2 2 3 3 1 2 2 3 Low Security (%) 22 | 100 88 43 5 . . 42 3 . . Level 1 25 | . 11 33 12 7 28 57 20 6 67 Level 2 41 | . . 22 81 35 61 . 75 93 6 Level 3 9 | . . . . 56 9 . . . 26 Level 4 . | . . . . . . . . . . Level 5 . | . . . . . . . . . . High Security . | . . . . . . . . . . Max Security . | . . . . . . . . . . Squads Dispatched 45 | . 3 1 8 . 11 . 17 . 5 Investigation 14 | . 2 1 3 . 3 . 5 . . Extermination 7 | . . . . . 3 . 2 . 2 Reinforcement 8 | . 1 . 2 . 1 . 3 . 1 Assault 4 | . . . . . 1 . 2 . 1 Garrison 12 | . . . 3 . 3 . 5 . 1 Intercept . | . . . . . . . . . . Searches Triggered . | . . . . . . . . . . Construction Impeded 3 | . . . 1 . 1 . . . 1 Haulers Reinforced 1 | . . . . . . . 1 . . Active Scanning Responses . | . . . . . . . . . . Cargo Convoy Interrupts 1 | . . . . . . . . . 1 Stealth | -11 -10 -9 -8 -8 -7 -7 -7 -7 -6 --------- Run | Jun Mat Mat Mat Gar Fac Was Fac Gar Fac Distress Signals 10 | . 2 4 2 . 1 . . . 1 Communications Jammed 48 | . . . . . . . . 48 . Distress Signals 48 | . . . . . . . . 48 . Times Spotted 235 | . 23 32 31 17 32 6 54 14 26 Peak Tracking Total 10 | . 4 3 6 7 6 2 5 4 10 Tactical Retreats 8 | . . 3 1 . 1 1 1 1 . Traps | -11 -10 -9 -8 -8 -7 -7 -7 -7 -6 ------- Run | Jun Mat Mat Mat Gar Fac Was Fac Gar Fac Traps Triggered 22 | . 5 1 1 9 2 . . 3 1 Indirectly . | . . . . . . . . . . Trap Hack Attempts 1 | . . . . . . . . . 1 Triggered . | . . . . . . . . . . Disarmed . | . . . . . . . . . . Reprogrammed 1 | . . . . . . . . . 1 Reused . | . . . . . . . . . . Traps Extracted . | . . . . . . . . . . Installed . | . . . . . . . . . . Triggered . | . . . . . . . . . . Machines | -11 -10 -9 -8 -8 -7 -7 -7 -7 -6 ---------- Run | Jun Mat Mat Mat Gar Fac Was Fac Gar Fac Machines Disabled 21 | . 1 3 . . 3 . 1 . 13 Max in Single Turn 7 | . 1 1 . . 2 . . . 7 Garrison Access 2 | . . . . . . . 1 . 1 Machines Repaired . | . . . . . . . . . . Machines Sabotaged . | . . . . . . . . . . Overloaded Fab Kills . | . . . . . . . . . . Hacking | -11 -10 -9 -8 -8 -7 -7 -7 -7 -6 --------- Run | Jun Mat Mat Mat Gar Fac Was Fac Gar Fac Machines Accessed 45 | . 9 8 8 3 7 . 7 1 2 Terminals 32 | . 7 7 5 3 4 . 3 1 2 Fabricators 4 | . . . . . 1 . 3 . . Repair Stations 3 | . 1 1 1 . . . . . . Recycling Units 3 | . 1 . 1 . 1 . . . . Scanalyzers 1 | . . . . . 1 . . . . Garrison Access 2 | . . . 1 . . . 1 . . Total Hacks 139 | . 28 30 27 9 24 . 17 1 3 Successful 63 | . 11 14 11 3 14 . 9 1 . Failed 74 | . 16 15 16 6 10 . 8 . 3 Catastrophic 18 | . 5 2 3 1 4 . 1 . 2 Database Lockouts 2 | . 1 1 . . . . . . . Manual 49 | . 16 11 10 4 5 . 3 . . Terminals 102 | . 25 28 20 9 8 . 8 1 3 Fabricators 11 | . . . . . 3 . 8 . . Repair Stations 9 | . 2 2 5 . . . . . . Recycling Units 5 | . 1 . 1 . 3 . . . . Scanalyzers 10 | . . . . . 10 . . . . Garrison Access 2 | . . . 1 . . . 1 . . Terminal Hacks 36 | . 9 12 6 3 1 . 4 1 . Robot Analysis 6 | . 2 2 2 . . . . . . Prototype ID Bank 4 | . 2 1 1 . . . . . . Open Door 1 | . . . . 1 . . . . . Emergency Access Points 3 | . . 2 . . . . . 1 . Machine Index 1 | . . . . . 1 . . . . Terminal Index 1 | . . 1 . . . . . . . Garrison Index 1 | . . . . . . . 1 . . Alert Level 5 | . 2 1 1 . . . 1 . . Unreport Threat 3 | . 1 . . . . . 2 . . Locate Traps 2 | . 1 1 . . . . . . . Transport Status 2 | . . 2 . . . . . . . Hauler Manifests 3 | . 1 1 1 . . . . . . Zone Layout 2 | . . 1 1 . . . . . . Garrison Registry 1 | . . . . 1 . . . . . Patrol Navigation 1 | . . . . 1 . . . . . Fabricator Hacks 5 | . . . . . 1 . 4 . . Network Status 2 | . . . . . 1 . 1 . . Load Schematic 2 | . . . . . . . 2 . . Build 1 | . . . . . . . 1 . . Repair Station Hacks 3 | . . . 3 . . . . . . Scan Component 2 | . . . 2 . . . . . . Repair 1 | . . . 1 . . . . . . Recycling Unit Hacks 3 | . 1 . 1 . 1 . . . . Retrieve Components 3 | . 1 . 1 . 1 . . . . Scanalyzer 8 | . . . . . 8 . . . . Insert Component 4 | . . . . . 4 . . . . Analyze 4 | . . . . . 4 . . . . Garrison Access Hacks 2 | . . . 1 . . . 1 . . Unlock Access 2 | . . . 1 . . . 1 . . Unauthorized Hacks 6 | . 1 2 . . 3 . . . . Terminals 1 | . . 1 . . . . . . . Botnet 1 | . . 1 . . . . . . . Fabricators 1 | . . . . . 1 . . . . Haulers 1 | . . . . . 1 . . . . Repair Stations 2 | . 1 1 . . . . . . . Mechanics 2 | . 1 1 . . . . . . . Recycling Units 1 | . . . . . 1 . . . . Reject 1 | . . . . . 1 . . . . Scanalyzers 1 | . . . . . 1 . . . . Extract 1 | . . . . . 1 . . . . Garrison Access . | . . . . . . . . . . Data Cores Recovered 1 | . . 1 . . . . . . . Used . | . . . . . . . . . . Hacking Detections 40 | . 8 8 6 3 7 . 6 . 2 Full Trace Events 17 | . 3 1 5 1 2 . 5 . . Feedback Events 3 | . . . 2 . . . 1 . . Corruption 3 | . . . 2 . . . 1 . . Feedback Blocked . | . . . . . . . . . . Robot Schematics Acquired . | . . . . . . . . . . Robots Built . | . . . . . . . . . . Authchips . | . . . . . . . . . . Time . | . . . . . . . . . . Total Robot Build Rating . | . . . . . . . . . . Part Schematics Acquired 8 | . . . . . 8 . . . . Parts Built 2 | . . . . . . . 2 . . Authchips . | . . . . . . . . . . Time 84 | . . . . . . . 84 . . Total Part Build Rating 8 | . . . . . . . 8 . . Parts Repaired 1 | . . . 1 . . . . . . Time 26 | . . . 26 . . . . . . Parts Recycled . | . . . . . . . . . . Recycled Matter . | . . . . . . . . . . Retrieved Matter . | . . . . . . . . . . Retrieved Components 14 | . 10 . 3 . 1 . . . . Parts Scanalyzed 4 | . . . . . 4 . . . . Part Schematics Acquired 4 | . . . . . 4 . . . . Parts Damaged . | . . . . . . . . . . Bothacking | -11 -10 -9 -8 -8 -7 -7 -7 -7 -6 ------------ Run | Jun Mat Mat Mat Gar Fac Was Fac Gar Fac Used RIF Installer . | . . . . . . . . . . Robots Hacked 1 | . . . . . 1 . . . . Non-combat 1 | . . . . . 1 . . . . Combat . | . . . . . . . . . . Robot Hacks Applied 2 | . . . . . 2 . . . . parse_system 1 | . . . . . 1 . . . . find_chute 1 | . . . . . 1 . . . . Relay Couplers Released 6 | . . . . . . . 1 . 5 Machine Destruction 3 | . . . . . . . 1 . 2 Programmers 3 | . . . . . . . . . 3 Fabnet Peak Effective % . | . . . . . . . . . . Robots Rewired . | . . . . . . . . . . Allies Hacked . | . . . . . . . . . . Hacks Repelled . | . . . . . . . . . . Allies | -11 -10 -9 -8 -8 -7 -7 -7 -7 -6 -------- Run | Jun Mat Mat Mat Gar Fac Was Fac Gar Fac Total Allies 20 | . . . . 1 . 19 . . . Largest Group 19 | . . . . 1 1 19 10 . . Highest-Rated Group 465 | . . . . 39 39 465 298 . . Highest-Rated Ally 39 | . . . . 39 39 35 35 . . Total Orders . | . . . . . . . . . . Ally Attacks 172 | . . . . 17 12 85 58 . . Total Damage 5877 | . . . . 193 163 4106 1415 . . Kills 28 | . . . . 1 1 13 13 . . Allies Corrupted . | . . . . . . . . . . Allies Melted . | . . . . . . . . . . Intel | -11 -10 -9 -8 -8 -7 -7 -7 -7 -6 ------- Run | Jun Mat Mat Mat Gar Fac Was Fac Gar Fac Robot Analysis Total 6 | . 2 2 2 . . . . . . Derelict Logs Recovered . | . . . . . . . . . . Drone Launches . | . . . . . . . . . . Drone Recoveries . | . . . . . . . . . . Exploration | -11 -10 -9 -8 -8 -7 -7 -7 -7 -6 ------------- Run | Jun Mat Mat Mat Gar Fac Was Fac Gar Fac Turns Passed 11954 | 102 1306 2383 1460 1297 1606 695 1311 772 1022 Spaces Moved 4509 | 48 527 908 404 477 518 526 400 275 426 Core 340 | 1 . . . . . 339 . . . Treads 3036 | 21 200 908 404 477 518 187 321 . . Legs 692 | 26 327 . . . . . 79 86 174 Wheels 383 | . . . . . . . . 189 194 Hover 58 | . . . . . . . . . 58 Flight . | . . . . . . . . . . Fastest Speed 50 | 50 120 160 240 240 240 50 160 175 135 Average Speed 205 | 136 201 221 240 240 240 96 212 209 193 Slowest Speed 470 | 160 320 240 240 240 240 240 470 260 270 Overloaded Moves . | . . . . . . . . . . Propulsion Burnouts . | . . . . . . . . . . Robots Hopped . | . . . . . . . . . . Cave-ins Triggered . | . . . . . . . . . . Exploration Rate (%) 44 | 6 99 74 32 57 19 96 14 37 15 Regions Visited 9 Branch Regions . Pre-discovered Areas . | . . . . . . . . . . Known Exits Taken 3 | . 1 . 1 . . . 1 . . Unknown Exits Taken 2 | 1 . 1 . . . . . . . Scrap Searched . | . . . . . . . . . . Spaces Dug 42 | . . 2 9 6 11 . . . 14 Terrain Destroyed 370 | . . 2 41 20 25 73 1 18 190 Melee 3 | . . 2 . . 1 . . . . Projectile 13 | . . . 2 . . . 1 1 9 AOE 354 | . . . 39 20 24 73 . 17 181 Terrain Rammed . | . . . . . . . . . . Walls Destroyed . | . . . . . . . . . . Machines Disabled . | . . . . . . . . . . Actions | -11 -10 -9 -8 -8 -7 -7 -7 -7 -6 --------- Run | Jun Mat Mat Mat Gar Fac Was Fac Gar Fac Total 6099 | 70 662 1157 672 551 730 673 622 402 560 Wait 437 | . 38 76 84 1 59 83 38 32 26 Move 4498 | 47 525 907 403 473 518 525 400 274 426 Hop . | . . . . . . . . . . Pick Up 144 | 6 21 36 15 4 12 5 25 7 13 Fast Attach 54 | 5 2 3 4 2 4 8 9 3 14 Attach 45 | 2 2 4 9 4 6 1 7 4 6 Detach 11 | . . 1 1 . 2 . 3 . 4 Swap 130 | 2 7 17 19 3 32 10 9 16 15 Drop 129 | . 6 37 19 2 16 17 7 8 17 Fire 577 | 6 56 69 111 44 72 24 121 37 37 Melee 7 | . . 2 . . 5 . . . . Ram 1 | . . . . . . . . . 1 Kick 6 | 2 4 . . . . . . . . Crush 20 | . 1 5 7 . 4 . 3 . . Escape Stasis 39 | . . . . 18 . . . 21 . Rewire . | . . . . . . . . . . Trap 1 | . . . . . . . . . 1 Miscellaneous . | . . . . . . . . . . Route ------- -11/Junkyard -10/Materials (discovered 3 exits: *Mat x3) -9/Materials (discovered 3 exits: *Mat x3) -8/Materials -8/Garrison (discovered 3 exits: *Fac x3) -7/Factory -7/Waste -7/Factory -7/Garrison -6/Factory History --------- Turn | Location | Event 23 | -11/Junkyard | Discovered new exit (range 16) 103 | -11/Junkyard | Entered Materials 213 | -10/Materials | Discovered new exit (range 15) 313 | -10/Materials | Build established: Mutant 456 | -10/Materials | Discovered new exit (range 15) 819 | -10/Materials | Discovered new exit (range 14) 857 | -10/Materials | Identified exit to Materials 909 | -10/Materials | Central database locked down 1277 | -10/Materials | Discovered exit to Materials (range 15) 1409 | -10/Materials | Entered another Materials area 1409 | -9/Materials | Evolved 2 slots: Propulsion x1, Utility x1 1743 | -9/Materials | Central database locked down 2026 | -9/Materials | Discovered new exit (range 5) 2252 | -9/Materials | Discovered new exit (range 8) 2755 | -9/Materials | Discovered new exit (range 13) 3092 | -9/Materials | Build established: Scavenger-Mutant 3372 | -9/Materials | Discovered new exit (range 13) 3469 | -9/Materials | Build established: Mutant 3494 | -9/Materials | Discovered new exit (range 15) 3792 | -9/Materials | Entered another Materials area 3792 | -8/Materials | Evolved 2 slots: Propulsion x1, Utility x1 3889 | -8/Materials | Garrison activated, responded to threat 3936 | -8/Materials | Identified exit to Garrison 4228 | -8/Materials | Build established: Scavenger-Mutant 4247 | -8/Materials | Discovered new exit (range 9) 4483 | -8/Materials | Repaired Lgt. Treads 5252 | -8/Materials | Entered Garrison 5385 | -8/Garrison | Destroyed 7 combat bots 5414 | -8/Garrison | Triggered checkpoint 5423 | -8/Garrison | Lost 3 parts (2n1u) 5443 | -8/Garrison | Discovered new exit (range 46) 5443 | -8/Garrison | Discovered new exit (range 53) 5443 | -8/Garrison | Discovered new exit (range 35) 5496 | -8/Garrison | Triggered checkpoint 5642 | -8/Garrison | Triggered checkpoint 5812 | -8/Garrison | Rescued a captive Derelict 5952 | -8/Garrison | Attempted to access garrison exit controls, blocked by remote lockdown 6288 | -8/Garrison | Attempted to access garrison exit controls, blocked by remote lockdown 6549 | -8/Garrison | Entered Factory 6549 | -7/Factory | Accompanied by 1 ally 6549 | -7/Factory | Evolved 2 slots: Utility x2 7037 | -7/Factory | Found Powered Armor 7040 | -7/Factory | Found Powered Armor 7044 | -7/Factory | Found Powered Armor 7051 | -7/Factory | Found Powered Armor 7254 | -7/Factory | Discovered new exit (range 16) 7743 | -7/Factory | Discovered new exit (range 11) 7947 | -7/Factory | Garrison activated, responded to threat 8149 | -7/Factory | First assault squad dispatched 8155 | -7/Factory | Sucked down chute 8155 | -7/Factory | Entered Waste 8196 | -7/Waste | Spotted C-40 Crusher 8208 | -7/Waste | Destroyed C-40 Crusher 8311 | -7/Waste | Spotted C-40 Crusher 8314 | -7/Waste | Destroyed C-40 Crusher 8340 | -7/Waste | Spotted C-40 Crusher 8367 | -7/Waste | Crushed by Compactor (1 part destroyed, 2 dropped) 8370 | -7/Waste | Crushed by Compactor (1 part destroyed, 1 dropped) 8389 | -7/Waste | Spotted C-40 Crusher 8395 | -7/Waste | Spotted C-40 Crusher 8401 | -7/Waste | Lost 4 parts (1p2n1w) 8421 | -7/Waste | Warlord forces began an assault 8435 | -7/Waste | Allies destroyed C-40 Crusher 8438 | -7/Waste | Spotted C-40 Crusher 8445 | -7/Waste | Allies destroyed C-40 Crusher 8446 | -7/Waste | Allies destroyed C-40 Crusher 8494 | -7/Waste | Discovered new exit (range 11) 8586 | -7/Waste | Allies destroyed C-40 Crusher 8850 | -7/Waste | Entered Factory 8850 | -7/Factory | Accompanied by 10 allies 9019 | -7/Factory | Discovered new exit (range 10) 9085 | -7/Factory | Garrison activated, responded to threat 9250 | -7/Factory | First assault squad dispatched 9349 | -7/Factory | Garrison activated, responded to threat 9399 | -7/Factory | Core integrity fell below 50% 9805 | -7/Factory | Fabricated Powered Armor? 9831 | -7/Factory | Found Prototype Launcher 9831 | -7/Factory | Identified Rocket Array 9868 | -7/Factory | Found Rocket Array 9871 | -7/Factory | Lost 4 parts (2n1u1w) 10161 | -7/Factory | Identified exit to Garrison 10161 | -7/Factory | Entered Garrison 10211 | -7/Garrison | Core integrity fell below 20% 10596 | -7/Garrison | Triggered checkpoint 10672 | -7/Garrison | Triggered checkpoint 10772 | -7/Garrison | Triggered checkpoint 10903 | -7/Garrison | Discovered new exit (range 10) 10933 | -7/Garrison | Entered Factory 10933 | -6/Factory | Evolved 2 slots: Power x1, Utility x1 11405 | -6/Factory | Discovered new exit (range 9) 11677 | -6/Factory | Garrison activated, responded to threat 11678 | -6/Factory | Cargo convoy interrupted 11705 | -6/Factory | Destroyed 10 combat bots 11712 | -6/Factory | Lost 3 parts (2n1u) 11792 | -6/Factory | Lost 7 parts (2p3n1u1w) 11834 | -6/Factory | Found Prototype Launcher 11834 | -6/Factory | Identified Tesla Bomb Launcher 11892 | -6/Factory | Found Tesla Bomb Launcher 11914 | -6/Factory | Found Tesla Bomb Launcher 11955 | -6/Factory | Self-destructed Last Messages --------------- 11925_ Destroyed Imp. Heat Sink. 11927_ System Shield destroyed. 11928_ P-60 Hacker Mic. Nuclear Core blasted off. 11928_ U-05 Engineer builds a Wall. 11931_ R-10 Processor collects Hvy. Antimatter Reactor. 11934_ U-05 Engineer builds a Wall. 11935_ R-10 Processor collects Adv. Plasma Cannon. 11936_ Acquired 5 matter. 11938_ System corrupted: Component data lost. 11938_ Destroyed Hpw. Tractor Beam. 11938_ R-10 Processor suffers critical hit (Blast). 11938_ Destroyed Com. Wheel. 11939_ R-10 Processor collects Unknown Storage. 11940_ Acquired 3 matter. 11946_ Slammed into R-10 Processor. 11951_ Slug penetrates Wall. 11953_ System corrupted: Energy discharge (-45). 11953_ Dropped Imp. Diametric Drive. 11954_ Acquired Imp. Diametric Drive. 11954_ R-10 Processor collects Com. Mass Driver. Map ----- +----------------------------------------------------+ | | | | | | | | | | | | | | | | | | | | | | | | | | | | | | | ????????????####################?????????????????? | | ????????????# #?????????????????? | | ????????????# #?????????????????? | | ????????????# #?????????????????? | | ????????????# ] #??################ | | ????????????# """ """ + | | ????????????# """ =""" #??######## ####### | | ????????????# """ [ ] %*""" #???????### ###?### | | ????????????# ]*] [] #???????# # | | ????????????##### ####R################# "" # | | ???????????# ###] p!]@ g g R k t T + | | ???????????# "" ### ]*##;;########### # | | ???????????# """??## k #???#?????????# ##### | | ???????????# S" ### #?????????????## ###### | | ???????????# + #?############## # | | ???????????#] ### #?# # + | | ???????????# !??### ### # " | | ???????????#?????# # """ # " | | ??????????????+### # """"" # " | | ?????????? # """"" # " | | ????????? "" # % # " | | ?????????? T + """ # # % | | ?????????? # """" # | | ????????? # %"""" # | | ?????????? ####### # !=[ # # | | ?????????????????# # %% %% # | | ?????????????????## ## % =# ### # | | ??????????????????# # ##%" " # # # # | | ??????????????????# # ####/### # | | ??????????????????# # # | | ??????????????????# # = # | | ??????????????????# # # % | | ??????????????????# # #! | | ??????????????????# # # | | ??????????????????? # #####+#####+ | +----------------------------------------------------+ Best States ------------- Heat Dissipation 51 Energy Generation 35 Energy Capacity 390 Matter Stores 300 Matter Capacity 300 Sight Range 18 Terrain Scan Density 10 Jamming Range 14 Armor Coverage 450 Resistance: KI 30 Evasion (%) 55 Targeting Accuracy 10 Core Analysis 6 Recoil Reduction 4 Offensive Hacking 20 Defensive Hacking 10 Item Schematics ----------------- Powered Armor | -7/Factory | Scanalyzed Adv. Terrain Scan Processor | -7/Factory | Scanalyzed Med. Reactive Plating | -7/Factory | Scanalyzed Seismic Detector | -7/Factory | Scanalyzed Greatsword | -7/Factory | Extracted Recalibrator | -7/Factory | Extracted Shock Absorption System | -7/Factory | Extracted Reaction Control System | -7/Factory | Extracted Robot Schematics ------------------ None Fabricated ------------ Powered Armor | x2 | -7/Factory Alien Tech Used ----------------- None Achievements -------------- None Challenges ------------ Super Gauntlet Game ------ Seed ColdMicrowarpLeg Manual? 0 Play Time 01:58:27 Cumulative 282.2 hours Start 2023.07.01 @ 00:52:27 End 2023.07.01 @ 21:03:49 Sessions 5 Manual Loads 0 Difficulty Rogue Special Mode None Game No. 156 Rogue 156 Adventurer 0 Explorer 0 Win Type - Total 13 Types 7/0/2/3/0/0/1/0/0 Lore% 80 Gallery% 85 Achievement% 76 Wizard Run 0 Options --------- ASCII 0 Keyboard 1 Movement Arrows Keybinds 0 Fullscreen 2 Font 18/X11 Map View 76x50 Tactical HUD 1 Map Filters NONE Filters NONE Steam 1 RUN: b22fc717-ef46-4898-9c16-bce3ef7176c3